Cogmind - Beta 16.1 @@@ ROGUE MODE // 2026.02.17 @ 00:18:45 Player: Zetadar Result: Destroyed by G-34 Mercenary with Small Laser Performance ------------- Evolutions (1) 500 Regions Visited (3) 600 Robots Destroyed (35) 175 Value Destroyed (1026) 1026 Prototype IDs (2) 40 Alien Tech Used (0) 0 Bonus (21) 21 TOTAL SCORE: 2362 Bonus ------- Follower Combat Kills 21 Cogmind --------- Core Integrity 0/400 Matter 291/300 Energy 98/100 System Corruption 2% Temperature Cool (7) Movement Treading (160) Location -9/Materials Parts ------- > --- POWER (2) -------- (None) > --- PROPULSION (2) --- Light Treads > --- UTILITY (3) ------ Medium Storage Unit Signal Interpreter Targeting Computer > --- WEAPON (2) ------- Heavy Mace > --- INVENTORY (10) --- Recoil Stabilizer Improved Light Armor Plating Improved Light Armor Plating Improved Light Armor Plating High-powered Shotgun Assault Cannon Peak State ------------ > --- POWER ------------ Light Nuclear Core Light Nuclear Core > --- PROPULSION ------- Improved Treads Improved Treads > --- UTILITY ---------- Small Storage Unit Signal Interpreter Targeting Computer > --- WEAPON ----------- Assault Cannon Heavy Mace > --- INVENTORY -------- Light Deuterium Engine Light Treads Light Treads Recoil Stabilizer Improved Light Armor Plating Improved Light Armor Plating Improved Light Armor Plating High-powered Shotgun [Rating: 21] Favorites ----------- Power Light Nuclear Core Engine Light Deuterium Engine Power Core Light Nuclear Core Propulsion Improved Treads Treads Improved Treads Leg Aluminum Leg Utility Signal Interpreter Storage Small Storage Unit Processor Signal Interpreter Protection Hardened Light Armor Plating Weapon Heavy Mace Ballistic Gun Light Assault Rifle Ballistic Cannon Assault Cannon Special Weapon Mining Laser Impact Weapon Heavy Mace Build | -11 -10 -10 -9 ------- Run | Yrd Mat Min Mat Slots Evolved 2 | . . . 2 Power 1 | . . . 1 Propulsion . | . . . . Utility 1 | . . . 1 Weapon . | . . . . Parts Attached 27 | 5 8 4 10 Power 7 | 1 2 1 3 Engine 4 | 1 1 1 1 Core 3 | . 1 . 2 Reactor . | . . . . Propulsion 9 | 2 3 1 3 Treads 7 | 2 3 1 1 Leg 2 | . . . 2 Wheel . | . . . . Hover . | . . . . Flight . | . . . . Utility 5 | 1 2 . 2 Device . | . . . . Storage 2 | 1 . . 1 Processor 2 | . 1 . 1 Hackware . | . . . . Protection 1 | . 1 . . Artifact . | . . . . Weapon 6 | 1 1 2 2 Energy Gun . | . . . . Energy Cannon . | . . . . Ballistic Gun 1 | 1 . . . Ballistic Cannon 2 | . 1 1 . Launcher . | . . . . Special Weapon 1 | . . 1 . Impact Weapon 2 | . . . 2 Slashing Weapon . | . . . . Piercing Weapon . | . . . . Special Melee Weapon . | . . . . Unidentified Prototypes . | . . . . Parts Lost 7 | . . . 7 Power 4 | . . . 4 Propulsion 3 | . . . 3 Utility . | . . . . Weapon . | . . . . Highest Loss Streak 4 | . . . 4 To Critical Strikes . | . . . . Average Backups 6 | . 6 7 6 Power . | . . . . Propulsion 1 | . 3 2 . Utility 3 | . 3 3 3 Weapon 1 | . . . 1 Tool/Special . | . . . . Unused Backups 10 | . 1 . 9 Power 1 | . 1 . . Propulsion 1 | . . . 1 Utility 7 | . . . 7 Weapon 1 | . . . 1 Tool/Special . | . . . . Average Slot Usage (%) 91 | . 96 100 80 Engine 7 | . 3 9 7 Core 6 | . 10 4 5 Treads 21 | . 28 28 10 Leg 2 | . . . 5 Storage 12 | . 14 14 11 Processor 14 | . 5 14 22 Protection 2 | . 7 . . Ballistic Gun 5 | . 14 4 . Ballistic Cannon 8 | . 11 10 3 Special Weapon 4 | . . 13 . Impact Weapon 5 | . . . 13 Peak Build Rating 21 | 5 13 14 21 Average Rating 13 | 3 11 13 14 On Entrance 7 | . 5 12 14 Avg Prop Armor Cover (%) . | . . . . Naked Turns . | . . . . Heaviest Build 25 | 9 24 16 25 Greatest Support 46 | 40 46 46 46 Greatest Overweight (x) 5 | . . . 5 Average Overweight (x) . | . . . . Largest Inventory Capacity 10 | 8 8 8 10 Average Capacity 8 | 6 8 8 9 Most Carried 8 | 2 8 8 8 Average Carried 6 | . 6 7 6 Final Capacity 10 | 8 8 8 10 Final Carried 8 | . 7 8 6 Class Distribution -------------------- 100% | Mutant Dominant Class ---------------- Mutant | -10/Materials Mutant | -10/Mines Mutant | -9/Materials Resources | -11 -10 -10 -9 ----------- Run | Yrd Mat Min Mat Matter Collected 714 | 171 288 91 164 Remotely . | . . . . Salvage Created 1105 | . 362 88 655 Parts 68 | . 24 11 33 Haulers Intercepted 1 | . 1 . . Recyclers Shooed . | . . . . Parts Field Recycled . | . . . . Retrieved Matter . | . . . . Parts Self-Destructed . | . . . . Prevented . | . . . . Parts Restored . | . . . . Kills | -11 -10 -10 -9 ------- Run | Yrd Mat Min Mat Combat Hostiles Destroyed 31 | . 10 4 17 Melee 8 | . . . 8 Guns 8 | . 5 3 . Cannons 7 | . 5 1 1 Classes Destroyed 8 | . 3 1 4 Builder 1 | . . . 1 Hauler 1 | . 1 . . Operator 1 | . . . 1 Watcher 1 | . . . 1 Swarmer 8 | . 2 3 3 Grunt 16 | . 8 . 8 Duelist 1 | . . . 1 Sentry 6 | . . 1 5 Best Kill Streak 5 | . 2 2 5 Combat Bots Only 4 | . 2 2 4 Max Kills in Single Turn 2 | . 2 1 1 Gunslinging . | . . . . Exploded . | . . . . Melee 1 | . . . 1 Uniques/NPCs Destroyed . | . . . . Combat | -11 -10 -10 -9 -------- Run | Yrd Mat Min Mat Hostile Shots Fired 278 | . 53 33 192 Missed 82 | . 18 12 52 Hits 196 | . 35 21 140 Melee 1 | . . . 1 Projectile 195 | . 35 21 139 Damage Taken 2039 | . 365 174 1500 Core 456 | . 24 26 406 Absorbed by Shields . | . . . . Core Remaining (%) 90 | 100 . 80 . Volleys Fired 58 | . 33 17 8 Largest 2 | . 2 1 1 Hottest 50 | . 50 37 37 Shots Fired 82 | . 57 17 8 Gun 46 | . 33 13 . Cannon 36 | . 24 4 8 Launcher . | . . . . Special . | . . . . Kinetic 82 | . 57 17 8 Thermal . | . . . . Explosive . | . . . . Electromagnetic . | . . . . Robot Hit Streak 10 | . 10 4 2 Robot Miss Streak 3 | . 3 3 1 Penetration Max . | . . . . Secondary Targets . | . . . . Shots Hit Robots 77 | . 35 8 34 Core Hits 36 | . 19 6 11 Critical Kills 2 | . . . 2 Critical Parts Destroyed 9 | . . . 9 Critical Strikes 11 | . . . 11 Smash 11 | . . . 11 Melee Attacks 46 | . . . 46 Impact 46 | . . . 46 Slashing . | . . . . Piercing . | . . . . Sneak Attacks 1 | . . . 1 Combat Hostiles . | . . . . Follow-up Attacks 3 | . . . 3 Damage Inflicted 1825 | . 400 110 1315 Guns 222 | . 160 62 . Cannons 412 | . 240 48 124 Explosions . | . . . . Melee 1191 | . . . 1191 Ramming . | . . . . Kinetic 634 | . 400 110 124 Thermal . | . . . . Explosive . | . . . . Electromagnetic . | . . . . Impact 1191 | . . . 1191 Slashing . | . . . . Piercing . | . . . . Highest Corruption 2 | . . . 2 Average Corruption 2 | . . . 2 Corruption Purged . | . . . . Corruption Blocked . | . . . . Effects 10 | . . . 10 Message Errors 4 | . . . 4 Matter Fused 4 | . . . 4 Energy Discharges 2 | . . . 2 Overload Shots . | . . . . Overflow Damage 400 | . 2 . 398 Projectiles 2 | . 2 . . Explosions . | . . . . Melee 398 | . . . 398 Knockbacks 8 | . 2 . 6 Impact 5 | . . . 5 Kinetic 3 | . 2 . 1 Secondary . | . . . . Self-Inflicted Damage . | . . . . Shots . | . . . . Rammed 2 | . . 2 . Targets Rammed 2 | . . 2 . Kicked . | . . . . Crushed . | . . . . Highest Temperature 95 | . 95 2 30 Average Temperature 27 | . 32 2 15 Received Heat Transfer 570 | . 153 9 408 Siege Activations . | . . . . Martial Activations . | . . . . Shielding Activations . | . . . . Robots Disrupted . | . . . . Combat Hostiles . | . . . . Robots Corrupted 8 | . . . 8 Combat Hostiles 8 | . . . 8 Parts Fried 9 | . . . 9 Impact Corruptions 12 | . . . 12 Robots Melted . | . . . . Combat Hostiles . | . . . . Parts Melted . | . . . . Heat Transferred . | . . . . Parts Sabotaged . | . . . . Parts Stolen . | . . . . Parts Stripped . | . . . . Power Chain Reactions . | . . . . Alert | -11 -10 -10 -9 ------- Run | Yrd Mat Min Mat Maximum Alert Level . | . . . . Low Security (%) 100 | 100 100 100 100 Level 1 . | . . . . Level 2 . | . . . . Level 3 . | . . . . Level 4 . | . . . . Level 5 . | . . . . High Security . | . . . . Max Security . | . . . . Peak Influence 177 | . 68 108 177 Initial 11 | . . 11 . Average 45 | . 24 18 84 Influence Increases 912 | . 263 169 480 Destroy 0b10 Robot/C 680 | . 200 140 340 Destroy 0b10 Robot/NC 20 | . 5 . 15 Destroy Leader 154 | . 42 20 92 Allied During Kill 8 | . . 8 . Successful Hack 17 | . . . 17 Disable Machine 30 | . 15 . 15 Destroy Structure 3 | . 1 1 1 Influence Decreases 793 | . 233 199 361 Entered New Map 19 | . . 19 . Time Decay 704 | . 233 180 291 Lost Part 70 | . . . 70 Squads Dispatched 6 | . 3 1 2 Investigation 3 | . 1 1 1 Extermination . | . . . . Reinforcement 3 | . 2 . 1 Assault . | . . . . Garrison . | . . . . Intercept . | . . . . Searches Triggered . | . . . . Construction Impeded . | . . . . Haulers Reinforced . | . . . . Active Scanning Responses . | . . . . Cargo Convoy Interrupts . | . . . . Stealth | -11 -10 -10 -9 --------- Run | Yrd Mat Min Mat Distress Signals 1 | . . . 1 Communications Jammed . | . . . . Distress Signals . | . . . . Times Spotted 49 | . 15 8 26 Peak Tracking Total 5 | . 4 3 5 Tactical Retreats . | . . . . Traps | -11 -10 -10 -9 ------- Run | Yrd Mat Min Mat Traps Triggered 3 | . 1 . 2 Indirectly . | . . . . Trap Hack Attempts . | . . . . Triggered . | . . . . Disarmed . | . . . . Reprogrammed . | . . . . Reused . | . . . . Traps Extracted . | . . . . Installed . | . . . . Triggered . | . . . . Machines | -11 -10 -10 -9 ---------- Run | Yrd Mat Min Mat Machines Disabled 4 | . 2 1 1 Max in Single Turn 1 | . 1 1 1 Machines Repaired . | . . . . Machines Dismantled . | . . . . Machines Sabotaged . | . . . . Overloaded Fab Kills . | . . . . Hacking | -11 -10 -10 -9 --------- Run | Yrd Mat Min Mat Machines Accessed 5 | . . 1 4 Terminals 1 | . . . 1 Fabricators . | . . . . Repair Stations 1 | . . . 1 Recycling Units . | . . . . Scanalyzers 2 | . . . 2 Garrison Access . | . . . . Total Hacks 15 | . . 1 14 Successful 8 | . . 1 7 Failed 7 | . . . 7 Catastrophic . | . . . . Database Lockouts . | . . . . Manual . | . . . . Terminals 4 | . . . 4 Fabricators . | . . . . Repair Stations 3 | . . . 3 Recycling Units . | . . . . Scanalyzers 7 | . . . 7 Garrison Access . | . . . . Terminal Hacks 5 | . . 1 4 Prototype ID Bank 1 | . . . 1 Open Door 1 | . . 1 . Dispatch Records 1 | . . . 1 Investigation Status 1 | . . . 1 Hauler Manifests 1 | . . . 1 Fabricator Hacks . | . . . . Repair Station Hacks 1 | . . . 1 Scan Component 1 | . . . 1 Recycling Unit Hacks . | . . . . Scanalyzer 2 | . . . 2 Insert Component 1 | . . . 1 Retrieve Study 1 | . . . 1 Garrison Access Hacks . | . . . . Unauthorized Hacks . | . . . . Terminals . | . . . . Fabricators . | . . . . Repair Stations . | . . . . Recycling Units . | . . . . Scanalyzers . | . . . . Garrison Access . | . . . . Data Cores Recovered 2 | . . . 2 Used . | . . . . Hacking Detections 3 | . . . 3 Full Trace Events 2 | . . . 2 Feedback Events . | . . . . Feedback Blocked . | . . . . Robot Schematics Acquired . | . . . . Robots Built . | . . . . Authchips . | . . . . Time . | . . . . Total Robot Build Rating . | . . . . Part Schematics Acquired . | . . . . Parts Built . | . . . . Authchips . | . . . . Time . | . . . . Total Part Build Rating . | . . . . Part Studies Acquired . | . . . . Parts Repaired . | . . . . Time . | . . . . Parts Recycled . | . . . . Recycled Matter . | . . . . Retrieved Matter . | . . . . Retrieved Components . | . . . . Parts Scanalyzed . | . . . . Part Schematics Acquired . | . . . . Parts Damaged . | . . . . Bothacking | -11 -10 -10 -9 ------------ Run | Yrd Mat Min Mat Used RIF Installer . | . . . . Robots Hacked . | . . . . Non-combat . | . . . . Combat . | . . . . Robot Hacks Applied . | . . . . Relay Couplers Released . | . . . . Fabnet Peak Effective % . | . . . . Robots Rewired . | . . . . Allies Hacked . | . . . . Hacks Repelled . | . . . . Allies | -11 -10 -10 -9 -------- Run | Yrd Mat Min Mat Total Allies 1 | . . 1 . Largest Group 1 | . . 1 . Highest-Rated Group 31 | . . 31 . Highest-Rated Ally 31 | . . 31 . Total Orders . | . . . . Ally Attacks 4 | . . 4 . Total Damage 84 | . . 84 . Kills 3 | . . 3 . Allies Corrupted . | . . . . Allies Melted . | . . . . Intel | -11 -10 -10 -9 ------- Run | Yrd Mat Min Mat Active Infowar (turns) . | . . . . Robot Analysis Total . | . . . . Derelict Logs Recovered 1 | . . 1 . Drone Launches . | . . . . Drone Recoveries . | . . . . Exploration | -11 -10 -10 -9 ------------- Run | Yrd Mat Min Mat Turns Passed 2627 | 64 711 848 1004 Spaces Moved 1389 | 37 375 496 481 Core 20 | 4 . . 16 Treads 1230 | 33 375 496 326 Legs 139 | . . . 139 Wheels . | . . . . Hover . | . . . . Flight . | . . . . Fastest Speed 50 | 50 160 160 120 Average Speed 163 | 148 160 160 171 Slowest Speed 300 | 160 160 160 300 Overloaded Moves . | . . . . Propulsion Burnouts . | . . . . Robots Hopped . | . . . . Potential Cave-ins . | . . . . Cave-ins Triggered . | . . . . Exploration Rate (%) 52 | 4 57 98 49 Regions Visited 3 Branch Regions 1 Pre-discovered Areas 1 | . . 1 . Known Exits Taken 2 | . 1 1 . Unknown Exits Taken 1 | 1 . . . Scrap Searched 3 | . . 3 . Spaces Dug . | . . . . Terrain Destroyed 2 | . . 1 1 Melee . | . . . . Projectile 2 | . . 1 1 AOE . | . . . . Terrain Rammed . | . . . . Walls Destroyed . | . . . . Machines Disabled . | . . . . Actions | -11 -10 -10 -9 --------- Run | Yrd Mat Min Mat Total 1596 | 46 435 534 581 Wait 21 | . 4 3 14 Move 1386 | 36 374 495 481 Hop . | . . . . Pick Up 36 | 5 12 6 13 Fast Attach 1 | . 1 . . Attach 15 | 5 1 . 9 Detach 2 | . . . 2 Swap 14 | . 6 6 2 Drop 19 | . 4 5 10 Fire 58 | . 33 17 8 Melee 42 | . . . 42 Ram . | . . . . Kick . | . . . . Crush 2 | . . 2 . Escape Stasis . | . . . . Rewire . | . . . . Trap . | . . . . Miscellaneous . | . . . . Route ------- -11/Scrapyard -10/Materials (discovered 2 exits: *Mat / *Min) -10/Mines (discovered 2 exits: *Mat x2) -9/Materials (discovered 1 exit: *Mat) History --------- Turn | Location | Event 9 | -11/Scrapyard | Discovered new exit (range 15) 65 | -11/Scrapyard | Entered Materials 260 | -10/Materials | Discovered new exit (range 3) 305 | -10/Materials | Build established: Mutant 563 | -10/Materials | Identified exit to Materials 656 | -10/Materials | Discovered new exit (range 11) 677 | -10/Materials | Identified exit to Mines 776 | -10/Materials | Entered Mines 779 | -10/Mines | Received a Mining Laser from a helpful Derelict 802 | -10/Mines | Discovered exit to Materials (range 6) 906 | -10/Mines | Learned location of Mines (-9) 911 | -10/Mines | Discovered exit to Materials (range 6) 1014 | -10/Mines | Met a Derelict shopkeep closing up shop 1401 | -10/Mines | Joined a pair of Derelicts in attacking an 0b10 outpost 1488 | -10/Mines | Found a hidden stash of uninstalled traps 1624 | -10/Mines | Entered Materials 1624 | -9/Materials | Evolved 2 slots: Power x1, Utility x1 2020 | -9/Materials | Core integrity fell below 50% 2041 | -9/Materials | Lost 4 parts (2p2n) 2127 | -9/Materials | Discovered new exit (range 5) 2134 | -9/Materials | Identified exit to Materials 2390 | -9/Materials | Core integrity fell below 20% 2628 | -9/Materials | Destroyed by G-34 Mercenary with Small Laser Last Messages --------------- Identified Hvy. Mace... >>Insert(Assault Cannon) Scanning Assault Cannon... Ready to analyze. ALERT: Suspicious activity at Scanalyzer M001. Dispatching Investigation squad. Triggered Explosive Trap. An explosion rips through the floor. Imp. Ion Engine destroyed. System corrupted: Matter fused (-9). Connecting with Scanalyzer... T-07 Excavator is excavating. System corrupted: Energy discharge (-26). T-07 Excavator is excavating. U-05 Engineer lays Concrete. U-05 Engineer builds a Wall. U-05 Engineer lays Concrete. U-05 Engineer builds a Wall. U-05 Engineer lays Concrete. U-05 Engineer builds a Door. Map ----- +----------------------------------------------------+ | | | | | | | | | | | | | | | | | | | | | | | | | | | | | | | ????######?????????????##????????????????????????? | | ???? ##########?? #???????????????????? | | ???# # #?""" """ #???????????????????? | | #### """ # #??"" """ ????????????????????? | | #""" """ # #??"" """ ????????????????????? | | #""" """ # #??? ?????????????????????? | | #"S # #??? ?????????????????????? | | #""" """ # #???? ??????????????????????? | | # "" """ # #???? ??????????????????????? | | #### """ # #???##/########???????????????? | | #??# !# #???# @ ==#????????? | | ???# ###+######???# ###############???????? | | ######## # ######### #??????# #???????? | | #??????# #???????? | | " #### ##?##### #######?? | | ####### # ##+#+### #?# # ##!!!!##? | | |#??########## ## % #?# < # "T" #! !#? | | " #???????????# ## #?# # # #? | | " !#???????????# / o#?# ###+#### ## | | " #???????????# "" ## g #?# | | " #???????????# """###g ##?# | | " #???????????#! S"#?# #??# " """" | | " #???????????# #?# #??#### """"""" | | " #???????????####+##?#% #?????# ^ """ "" | | #??????????????# #??# #?????# ^ ! | | ####??????????????# #??# #?????# ^ | | ??????????????????# #??# #?????# " """" | | ?????????????###??#=#??# +?????# """""" | | ????????????## ####+#### #?????# """ | | ????????????# %%%## ##???## | | ????????????# """""=# ##### "" | | ????????????# ""T""%# "T | | ????????????# =+ " "" | | ????????????# # | | ????????????# # ##### ?? | +----------------------------------------------------+ Best States ------------- Heat Dissipation 28 Energy Generation 23 Energy Capacity 305 Matter Stores 300 Matter Capacity 300 Sight Range 16 Terrain Scan Density 10 Armor Coverage 150 Evasion (%) 55 Targeting Accuracy 5 Recoil Reduction 2 Item Schematics ----------------- None Robot Schematics ------------------ None Fabricated ------------ Nothing Repaired ---------- Nothing Studied --------- None Alien Tech Used ----------------- None Achievements -------------- Ghost 'Em Challenges ------------ None Game ------ Seed ReactiveDirtyJammer Manual? 0 Play Time 00:27:35 Cumulative 6.5 hours Start 2026.02.16 @ 23:51:28 End 2026.02.17 @ 00:18:45 Sessions 1 Manual Loads 0 Difficulty Rogue Special Mode None Game No. 9 Rogue 9 Adventurer 0 Explorer 0 Win Type - Total 0 Types 0/0/0/0/0/0/0/0/0/0 Lore% 4 Gallery% 9 Achievement% 9 Wizard Run 0 Options --------- Layout 0 ASCII 0 Keyboard 0 Movement Mouse Keybinds 0 Fullscreen 2 Font 18/SmallcapsGlow Map View 76x50 Zoom Use 0% Tactical HUD 0 Map Filters NONE Filters NONE Steam 1 RUN: 40bb2dee-5a61-44e8-9cef-d5d2ca53503e